Cogmind - Beta 12 *** ADVENTURER MODE // 2023.10.28 @ 19:27:52 Player: Khazzy Result: Destroyed by S-10 Pest with Light Assault Rifle Performance ------------- Evolutions (1) 500 Regions Visited (2) 400 Robots Destroyed (24) 120 Value Destroyed (525) 525 Prototype IDs (0) 0 Alien Tech Used (0) 0 Bonus (0) 0 TOTAL SCORE: 1545 Bonus ------- None Cogmind --------- Core Integrity 0/400 Matter 300/300 Energy 100/100 System Corruption 6% Temperature Cool (0) Movement Core (700) Ox13 Location -9/Materials Parts ------- > --- POWER (1) -------- (None) > --- PROPULSION (2) --- (None) > --- UTILITY (4) ------ Large Storage Unit Large Storage Unit > --- WEAPON (2) ------- (None) > --- INVENTORY (15) --- Light Ion Engine Wheel Wheel Mini Grenade Launcher Peak State ------------ > --- POWER ------------ Ion Engine > --- PROPULSION ------- Light Treads Light Treads > --- UTILITY ---------- Large Storage Unit Large Storage Unit Hardened Light Armor Plating > --- WEAPON ----------- Assault Rifle Mini Grenade Launcher > --- INVENTORY -------- Light Ion Engine Aluminum Leg Aluminum Leg Wheel Wheel Weapon Shielding EM Pulse Gun Light Assault Rifle Mini Grenade Launcher [Rating: 11] Favorites ----------- Power Ion Engine Engine Ion Engine Propulsion Light Treads Treads Light Treads Leg Aluminum Leg Utility Large Storage Unit Storage Large Storage Unit Protection Hardened Light Armor Plating Weapon Mini Grenade Launcher Energy Gun EM Pulse Gun Ballistic Gun Assault Rifle Launcher Mini Grenade Launcher Build | -11 -10 -9 ------- Run | Jun Mat Mat Slots Evolved 2 | . . 2 Power . | . . . Propulsion . | . . . Utility 2 | . . 2 Weapon . | . . . Parts Attached 22 | 7 7 8 Power 4 | 1 1 2 Engine 4 | 1 1 2 Core . | . . . Reactor . | . . . Propulsion 5 | 3 . 2 Treads 2 | 2 . . Leg 3 | 1 . 2 Wheel . | . . . Hover . | . . . Flight . | . . . Utility 5 | 1 2 2 Device . | . . . Storage 3 | 1 2 . Processor . | . . . Hackware . | . . . Protection 2 | . . 2 Artifact . | . . . Weapon 8 | 2 4 2 Energy Gun 1 | . . 1 Energy Cannon . | . . . Ballistic Gun 4 | 2 1 1 Ballistic Cannon . | . . . Launcher 3 | . 3 . Special Weapon . | . . . Impact Weapon . | . . . Slashing Weapon . | . . . Piercing Weapon . | . . . Special Melee Weapon . | . . . Unidentified Prototypes . | . . . Parts Lost 10 | . . 10 Power 1 | . . 1 Propulsion 3 | . . 3 Utility 2 | . . 2 Weapon 4 | . . 4 Highest Loss Streak 7 | . . 7 To Critical Strikes . | . . . Average Slot Usage (%) 87 | . 93 78 Engine 11 | . 14 8 Treads 19 | . 28 7 Leg 5 | . . 11 Storage 22 | . 22 22 Protection 5 | . . 12 Ballistic Gun 11 | . 13 9 Launcher 9 | . 14 3 Naked Turns . | . . . Heaviest Build 54 | 13 48 54 Greatest Support 40 | 40 40 40 Greatest Overweight (x) 13 | 2 1 13 Average Overweight (x) . | . . 1 Largest Inventory Capacity 15 | 8 15 15 Average Capacity 12 | 7 12 15 Most Carried 9 | 8 9 9 Average Carried 6 | 5 7 5 Final Capacity 15 | 8 15 15 Final Carried 8 | 6 8 4 Class Distribution -------------------- 100% | Mutant Dominant Class ---------------- Mutant | -10/Materials Mutant | -9/Materials Resources | -11 -10 -9 ----------- Run | Jun Mat Mat Matter Collected 593 | 236 186 171 Remotely . | . . . Salvage Created 504 | . 245 259 Parts 48 | . 19 29 Haulers Intercepted . | . . . Recyclers Shooed 1 | . . 1 Parts Field Recycled . | . . . Retrieved Matter . | . . . Parts Self-Destructed . | . . . Prevented . | . . . Kills | -11 -10 -9 ------- Run | Jun Mat Mat Combat Hostiles Destroyed 14 | . 9 5 Melee 1 | . . 1 Guns 7 | . 4 3 AOE 6 | . 5 1 Classes Destroyed 7 | . 4 3 Worker 2 | . 1 1 Builder 2 | . . 2 Tunneler 1 | . . 1 Operator 1 | . . 1 Watcher 4 | . 1 3 Swarmer 4 | . 3 1 Grunt 10 | . 6 4 Best Kill Streak 6 | . 4 6 Combat Bots Only 3 | . 3 2 Max Kills in Single Turn 3 | . 2 3 Gunslinging . | . . . Exploded 2 | . 2 1 Melee 1 | . . 1 Uniques/NPCs Destroyed . | . . . Combat | -11 -10 -9 -------- Run | Jun Mat Mat Damage Taken 1809 | . 388 1421 Core 468 | . 61 407 Absorbed by Shields . | . . . Redirected to Shielding 50 | . . 50 Core Remaining (%) 87 | 100 75 . Volleys Fired 59 | . 30 29 Largest 2 | . 2 2 Hottest 50 | . 50 50 Shots Fired 69 | . 37 32 Gun 56 | . 30 26 Cannon . | . . . Launcher 13 | . 7 6 Special . | . . . Kinetic 56 | . 30 26 Thermal . | . . . Explosive 13 | . 7 6 Electromagnetic . | . . . Robot Hit Streak 19 | . 18 19 Robot Miss Streak 1 | . 1 1 Penetration Max . | . . . Secondary Targets . | . . . Shots Hit Robots 45 | . 23 22 Core Hits 42 | . 20 22 Critical Kills . | . . . Critical Parts Destroyed . | . . . Critical Strikes . | . . . Melee Attacks . | . . . Impact . | . . . Slashing . | . . . Piercing . | . . . Sneak Attacks . | . . . Combat Hostiles . | . . . Follow-up Attacks . | . . . Damage Inflicted 1396 | 8 713 675 Guns 478 | . 301 177 Cannons . | . . . Explosions 840 | . 403 437 Melee . | . . . Ramming 78 | 8 9 61 Kinetic 478 | . 301 177 Thermal . | . . . Explosive 840 | . 403 437 Electromagnetic . | . . . Impact . | . . . Slashing . | . . . Piercing . | . . . Highest Corruption 6 | . . 6 Average Corruption 6 | . . 6 Corruption Purged . | . . . Corruption Blocked . | . . . Effects 7 | . . 7 Message Errors 3 | . . 3 Matter Fused 1 | . . 1 Heat Flow Errors 2 | . . 2 Data Loss (minor) 1 | . . 1 Overload Shots . | . . . Overflow Damage 7 | . . 7 Projectiles . | . . . Explosions 5 | . . 5 Melee 2 | . . 2 Knockbacks . | . . . Impact . | . . . Kinetic . | . . . Secondary . | . . . Self-Inflicted Damage 27 | . 27 . Shots 2 | . 2 . Rammed 5 | 1 2 2 Targets Rammed 28 | 1 2 25 Kicked 23 | . . 23 Crushed . | . . . Highest Temperature 222 | . 5 222 Average Temperature 41 | . 2 45 Received Heat Transfer 372 | . 123 249 Siege Activations . | . . . Robots Corrupted . | . . . Combat Hostiles . | . . . Parts Fried 1 | . . 1 Impact Corruptions 1 | . . 1 Robots Melted . | . . . Combat Hostiles . | . . . Parts Melted . | . . . Heat Transferred . | . . . Parts Sabotaged . | . . . Parts Stolen . | . . . Parts Stripped . | . . . Power Chain Reactions . | . . . Missiles Intercepted . | . . . Alert | -11 -10 -9 ------- Run | Jun Mat Mat Peak Influence 280 | . 176 280 Initial 54 | . . 54 Average 112 | . 75 185 Maximum Alert Level 1 | . . 1 Low Security (%) 78 | 100 100 47 Level 1 21 | . . 52 Level 2 . | . . . Level 3 . | . . . Level 4 . | . . . Level 5 . | . . . High Security . | . . . Max Security . | . . . Squads Dispatched 1 | . . 1 Investigation . | . . . Extermination . | . . . Reinforcement 1 | . . 1 Assault . | . . . Garrison . | . . . Intercept . | . . . Searches Triggered . | . . . Construction Impeded . | . . . Haulers Reinforced . | . . . Active Scanning Responses . | . . . Cargo Convoy Interrupts . | . . . Stealth | -11 -10 -9 --------- Run | Jun Mat Mat Distress Signals 1 | . 1 . Communications Jammed . | . . . Distress Signals . | . . . Times Spotted 28 | . 11 17 Peak Tracking Total 4 | . 3 4 Tactical Retreats 2 | . . 2 Traps | -11 -10 -9 ------- Run | Jun Mat Mat Traps Triggered . | . . . Indirectly . | . . . Trap Hack Attempts . | . . . Triggered . | . . . Disarmed . | . . . Reprogrammed . | . . . Reused . | . . . Traps Extracted . | . . . Installed . | . . . Triggered . | . . . Machines | -11 -10 -9 ---------- Run | Jun Mat Mat Machines Disabled 2 | . . 2 Max in Single Turn 1 | . . 1 Machines Repaired . | . . . Machines Sabotaged . | . . . Overloaded Fab Kills . | . . . Hacking | -11 -10 -9 --------- Run | Jun Mat Mat Machines Accessed . | . . . Terminals . | . . . Fabricators . | . . . Repair Stations . | . . . Recycling Units . | . . . Scanalyzers . | . . . Garrison Access . | . . . Total Hacks . | . . . Successful . | . . . Failed . | . . . Catastrophic . | . . . Database Lockouts . | . . . Manual . | . . . Terminals . | . . . Fabricators . | . . . Repair Stations . | . . . Recycling Units . | . . . Scanalyzers . | . . . Garrison Access . | . . . Terminal Hacks . | . . . Fabricator Hacks . | . . . Repair Station Hacks . | . . . Recycling Unit Hacks . | . . . Scanalyzer . | . . . Garrison Access Hacks . | . . . Unauthorized Hacks . | . . . Terminals . | . . . Fabricators . | . . . Repair Stations . | . . . Recycling Units . | . . . Scanalyzers . | . . . Garrison Access . | . . . Data Cores Recovered . | . . . Used . | . . . Hacking Detections . | . . . Full Trace Events . | . . . Feedback Events . | . . . Feedback Blocked . | . . . Robot Schematics Acquired . | . . . Robots Built . | . . . Authchips . | . . . Time . | . . . Total Robot Build Rating . | . . . Part Schematics Acquired . | . . . Parts Built . | . . . Authchips . | . . . Time . | . . . Total Part Build Rating . | . . . Parts Repaired . | . . . Time . | . . . Parts Recycled . | . . . Recycled Matter . | . . . Retrieved Matter . | . . . Retrieved Components . | . . . Parts Scanalyzed . | . . . Part Schematics Acquired . | . . . Parts Damaged . | . . . Bothacking | -11 -10 -9 ------------ Run | Jun Mat Mat Used RIF Installer . | . . . Robots Hacked . | . . . Non-combat . | . . . Combat . | . . . Robot Hacks Applied . | . . . Relay Couplers Released . | . . . Fabnet Peak Effective % . | . . . Robots Rewired . | . . . Allies Hacked . | . . . Hacks Repelled . | . . . Allies | -11 -10 -9 -------- Run | Jun Mat Mat Total Allies . | . . . Largest Group . | . . . Highest-Rated Group . | . . . Highest-Rated Ally . | . . . Total Orders . | . . . Ally Attacks . | . . . Total Damage . | . . . Kills . | . . . Allies Corrupted . | . . . Allies Melted . | . . . Intel | -11 -10 -9 ------- Run | Jun Mat Mat Robot Analysis Total . | . . . Derelict Logs Recovered . | . . . Drone Launches . | . . . Drone Recoveries . | . . . Exploration | -11 -10 -9 ------------- Run | Jun Mat Mat Turns Passed 1008 | 98 506 404 Spaces Moved 375 | 64 217 94 Core 35 | 33 . 2 Treads 292 | 31 217 44 Legs 48 | . . 48 Wheels . | . . . Hover . | . . . Flight . | . . . Fastest Speed 50 | 50 160 240 Average Speed 201 | 125 194 268 Slowest Speed 700 | 160 240 700 Overloaded Moves . | . . . Propulsion Burnouts . | . . . Robots Hopped . | . . . Cave-ins Triggered 1 | . . 1 Exploration Rate (%) 17 | 4 37 11 Regions Visited 2 Branch Regions . Pre-discovered Areas . | . . . Known Exits Taken . | . . . Unknown Exits Taken 2 | 1 1 . Scrap Searched . | . . . Spaces Dug . | . . . Terrain Destroyed 93 | . 49 44 Melee . | . . . Projectile . | . . . AOE 93 | . 49 44 Terrain Rammed . | . . . Walls Destroyed . | . . . Machines Disabled . | . . . Actions | -11 -10 -9 --------- Run | Jun Mat Mat Total 505 | 79 261 165 Wait 4 | . . 4 Move 373 | 63 216 94 Hop . | . . . Pick Up 15 | 8 4 3 Fast Attach 5 | 4 1 . Attach 10 | 2 1 7 Detach . | . . . Swap 7 | 1 5 1 Drop 4 | . 2 2 Fire 59 | . 30 29 Melee . | . . . Ram 2 | . . 2 Kick 23 | . . 23 Crush 3 | 1 2 . Escape Stasis . | . . . Rewire . | . . . Trap . | . . . Miscellaneous . | . . . Route ------- -11/Junkyard -10/Materials -9/Materials History --------- Turn | Location | Event 8 | -11/Junkyard | Discovered new exit (range 16) 99 | -11/Junkyard | Entered Materials 332 | -10/Materials | Build established: Mutant 565 | -10/Materials | Discovered new exit (range 13) 605 | -10/Materials | Entered another Materials area 605 | -9/Materials | Evolved 2 slots: Utility x2 740 | -9/Materials | Crushed by falling debris 771 | -9/Materials | Lost 3 parts (1n2w) 956 | -9/Materials | Core integrity fell below 50% 992 | -9/Materials | Core integrity fell below 20% 1009 | -9/Materials | Destroyed by S-10 Pest with Light Assault Rifle Last Messages --------------- Kicked S-10 Pest. Ion Engine destroyed. Critical hit (Burn: +37). Kicked S-10 Pest out of the way. U-05 Engineer lays Concrete. Kicked S-10 Pest out of the way. Destroyed Flight Unit. S-10 Pest system corrupted by crushing effect. Flight Unit fried. S-10 Pest destroyed. Aluminum Leg destroyed. R-06 Scavenger collects Corrupted Lgt. Assault Rifle. Kicked R-06 Scavenger. Lgt. Assault Rifle destroyed. Kicked A-02 Transporter. Kicked S-10 Pest. Aluminum Leg destroyed. Slammed into S-10 Pest. B1P 3IBS0T4NFND=V>F%W>RDKEWISSG &FET M-13 Machinist repairs S-10 Pest. Map ----- +----------------------------------------------------+ | ?????????????????????????????????????#######?????? | | ???????????????????????????????????? # #?????? | | ????????????????????????????????????? #?????? | | ????????????????????????????????????? #?????? | | ?????????????????????????????????????? ??????? | | ?????????????????????????????????????? ??????? | | ??????????????????????????????????????# #??????? | | ? ??????????????????????????????????# #??????? | | # ??????????????????????????????????# #????### | | # ??????????????????????????????????# #???##!! | | # ??????????###########?????????????# #???#! | | # ??????????# #?????????????# #???# | | # ??????????# ############### ##### | | # ??????????# # | | # #?????????# ! + | | # +?????????# !%= # ^" ] | | # #?????????# * #?# T #######+####### | | # #?????????# #?# " ""#???????????? | | # #?????????# #?# ^ Y"#???????????? | | # ################# ##### ""#???????????? | | # # ###########% ###???????????? | | # # / %%% %%%m% +???????????? | | # + = ###########s ###???????????? | | # # #??### # #%s ## T"###?????????????? | | # ###########????###### # ""#???????????????? | | # #???????????????????#@a # ##???????????????? | | ???????????????????# # ##????????????????? | | ???????????????????# ????????????????? | | ???????????????????+ ???????????????? | | ?????????????????? # ??????????????? | | ?????????????????? ## ##### #?????????????? | | # ###?????????????????? ## ##??? #?????????????? | | # ????????????????????" ?# #????? #?????????????? | | # ???????????????????? ?# #?????? #?????????????? | | # ????????????????????##??+#?????????????????????? | | # ???????????????????????? ?????????????????????? | | #????????????????????????? ?????????????????????? | | ?????????????????????????? ?????????????????????? | | ??????????????????????????? ?????????????????????? | | ?????????????????????????????????????????????????? | | ?????????????????????????????????????????????????? | | ?????????????????????????????????????????????????? | | ?????????????????????????????????????????????????? | | ?????????????????????????????????????????????????? | | ?????????????????????????????????????????????????? | | ?????????????????????????????????????????????????? | | ?????????????????????????????????????????????????? | | ?????????????????????????????????????????????????? | | ?????????????????????????????????????????????????? | | ?????????????????????????????????????????????????? | +----------------------------------------------------+ Best States ------------- Heat Dissipation 28 Energy Generation 10 Energy Capacity 250 Matter Stores 300 Matter Capacity 300 Sight Range 16 Terrain Scan Density 10 Armor Coverage 150 Resistance: KI 20 Resistance: TH 20 Resistance: EX 20 Resistance: EM 20 Resistance: I 20 Resistance: S 20 Resistance: P 20 Weapon Shielding 33 Evasion (%) 50 Recoil Reduction 2 Offensive Hacking 10 Item Schematics ----------------- None Robot Schematics ------------------ None Fabricated ------------ Nothing Alien Tech Used ----------------- None Achievements -------------- Unlikely Earthworm Challenges ------------ None Game ------ Seed BombSniperRedirector Manual? 0 Play Time 00:13:11 Cumulative 4.0 hours Start 2023.10.28 @ 19:17:28 End 2023.10.28 @ 19:27:52 Sessions 1 Manual Loads 0 Difficulty Adventurer Special Mode None Game No. 9 Rogue 4 Adventurer 5 Explorer 0 Win Type - Total 0 Types 0/0/0/0/0/0/0/0/0 Lore% 2 Gallery% 6 Achievement% 6 Wizard Run 0 Options --------- ASCII 0 Keyboard 0 Movement Arrows Keybinds 0 Fullscreen 2 Font 18/SmallcapsGlow Map View 76x50 Tactical HUD 0 Map Filters NONE Filters NONE Steam 1 RUN: 3322eaaf-ef9b-498a-b4bd-9a6cbf6ac314